fUST/lending_fUST_20251205
["ID","MTS","AMOUNT","RATE_DAILY","PERIOD"]
[396266327,1764906637930,-14.77915682,0.00011154,2]
[396266328,1764906637963,-1185.22084318,0.00011154,2]
[396266329,1764906637974,-3.77915682,0.00011154,2]
[396266331,1764906637986,-381.22084318,0.00011154,2]
[396266333,1764906637995,-300.0,0.00011154,2]
[396266335,1764906638004,-5716.78787086,0.00011155,2]
[396266363,1764906640146,-3e-08,0.00011155,2]
[396266767,1764906644417,-461.46577259,0.00011155,2]
[396266938,1764906647333,-170.31234047,0.00011155,2]
[396270680,1764906846327,5000.0,0.00010993,2]
[396270683,1764906869613,5000.0,0.00010999,2]
[396270684,1764906893517,5000.0,0.00010999,2]
[396270685,1764906917387,5000.0,0.00010889,2]
[396270686,1764906940440,5000.0,0.00010889,2]
[396270687,1764906963808,0.01,0.00010889,2]
[396270688,1764906963830,4999.99,0.00010889,2]
[396270689,1764906986920,5000.0,0.00010889,2]
[396270690,1764907009446,0.02,0.00010889,2]
[396270691,1764907009470,4999.98,0.00010889,2]
[396270781,1764907229247,5000.0,0.00010884,2]
[396270782,1764907252751,5000.0,0.00010884,2]
[396270783,1764907275822,0.01,0.00010884,2]
[396270784,1764907275846,4999.99,0.00010884,2]
[396270785,1764907298420,5000.0,0.00010884,2]
[396270786,1764907321842,0.02,0.00010884,2]
[396270787,1764907321868,4999.98,0.00010884,2]
[396270788,1764907351168,2000.0,0.00013,3]
[396270789,1764907364948,-369.78831431,0.00010835,2]
[396270790,1764907367184,-213.49828434,0.00010835,2]
[396270791,1764907367214,1000.0,0.0001,2]
[396270792,1764907368858,-531.6624339,0.00010835,2]
[396270793,1764907370485,-313.34086356,0.00010835,2]
[396270794,1764907374472,-164.7539679,0.00010835,2]
[396270795,1764907377163,-459.80584312,0.00010835,2]
[396270796,1764907379962,-395.88862555,0.00010835,2]
[396270797,1764907382279,-250.1735829,0.00010835,2]
[396270798,1764907385158,-164.53804103,0.00010835,2]
[396270799,1764907387499,-218.60633673,0.00010835,2]
[396270800,1764907389768,-396.94592762,0.00010835,2]
[396270801,1764907394785,-467.29707534,0.00010835,2]
[396270802,1764907396988,-305.23108715,0.00010835,2]
[396270803,1764907399287,-202.8023932,0.00010835,2]
[396270804,1764907401416,-376.89726169,0.00010835,2]
[396270806,1764907485021,-168.76996166,0.00010835,2]
[396270807,1764907485043,-21.80278962,0.0001089,2]
[396270808,1764907488539,-128.19721038,0.0001089,2]
[396270809,1764907488560,-180.77669462,0.00010944,2]
[396270810,1764907490729,-59.22330538,0.00010944,2]
[396270811,1764907490757,-185.7999349,0.00011,2]
[396270812,1764907492327,-247.0,0.00011,2]
[396270813,1764907496359,-367.3323905,0.0001089,2]
[396270814,1764907498280,-181.20625911,0.0001089,2]
[396270815,1764907501395,-238.95557108,0.0001089,2]
[396270816,1764907503528,-354.55355527,0.0001089,2]
[396270817,1764907506490,-300.01183225,0.0001089,2]
[396270818,1764907507965,-268.9381939,0.0001089,2]
[396270819,1764907511045,-300.0,0.0001089,2]
[396270820,1764907512340,-412.69492243,0.0001089,2]
[396270821,1764907515039,-162.62681283,0.0001089,2]
[396270822,1764907516565,-155.76528857,0.0001089,2]
[396270823,1764907519226,-290.97367503,0.0001089,2]
[396270824,1764907520757,-296.22991002,0.0001089,2]
[396270825,1764907521739,1202.5221733,0.00010374,2]
[396270826,1764907522310,-257.0,0.0001089,2]
[396270827,1764907526353,-158.30534449,0.0001089,2]
[396270828,1764907528166,-261.60502053,0.0001089,2]
[396270829,1764907665114,-545.40940357,0.0001089,2]
[396270830,1764907666851,-448.39182042,0.0001089,2]
[396270831,1764907666872,-6.24510444,0.00010985,2]
[396270832,1764907668569,-254.53345056,0.00010985,2]
[396270833,1764907670110,-175.08944416,0.00010985,2]
[396270834,1764907674383,-155.76528857,0.00010985,2]
[396270835,1764907675635,-199.30508971,0.00010985,2]
[396270836,1764907677737,-198.7429994,0.00010985,2]
[396270837,1764907679311,-187.75871626,0.00010985,2]
[396270838,1764907682085,-166.76210516,0.00010985,2]
[396270839,1764907684113,-415.47993631,0.00010985,2]
[396270840,1764907689398,5000.0,0.00010885,2]
[396270841,1764907697429,164.68620733,0.00010885,2]
[396270842,1764907721915,-5000.0,0.00010875,2]
[396270843,1764907722444,-150.0,0.0001093,2]
[396270844,1764907722465,-97.70902434,0.00010985,2]
[396270845,1764907725208,-167.13720144,0.00010985,2]
[396270846,1764907727964,-339.59656162,0.00010985,2]
[396270847,1764907729477,-245.74248661,0.00010985,2]
[396270848,1764907732672,-390.500736,0.00010985,2]
[396270849,1764907734921,-116.2551716,0.00010985,2]
[396270850,1764907734945,-231.82336119,0.00011,2]
[396270851,1764907735861,0.01,0.00010875,2]
[396270852,1764907735884,4999.99,0.00010875,2]
[396270853,1764907737025,-152.02194863,0.00011,2]
[396270854,1764907740743,-209.67789737,0.00011,2]
[396270855,1764907743501,-175.04842494,0.00011,2]
[396270856,1764907745081,-175.61955077,0.00011,2]
[396270857,1764907758478,5000.0,0.0001088,2]
[396270858,1764907769433,-265.39730965,0.00011,2]
[396270859,1764907784533,-161.36012214,0.0001089,2]
[396270860,1764907786151,-272.35276729,0.0001089,2]
[396270861,1764907790463,-454.16203179,0.0001089,2]
[396270862,1764907793800,-207.63960312,0.0001089,2]
[396270863,1764907795412,-155.76528857,0.0001089,2]
[396270864,1764907797500,-248.33166061,0.0001089,2]
[396270865,1764907802253,-270.81036288,0.0001089,2]
[396270866,1764907803891,-263.59441428,0.0001089,2]
[396270867,1764907805475,-151.00865929,0.0001089,2]
[396270868,1764907807518,-164.75396792,0.0001089,2]
[396270869,1764907808991,-235.67676033,0.0001089,2]
[396270870,1764907810634,-180.83073419,0.0001089,2]
[396270871,1764907813266,-278.28527676,0.0001089,2]
[396270872,1764907815923,-212.74402909,0.0001089,2]
[396270873,1764907830443,-259.52644548,0.0001089,2]
[396270876,1764907832004,-411.45191728,0.0001089,2]
[396270980,1764907834278,-403.31134297,0.0001089,2]
[396270981,1764907835902,-227.64723271,0.0001089,2]
[396271002,1764907837954,-440.7473833,0.0001089,2]
[396271004,1764907837964,-239.0,0.0001089,2]
[396271007,1764907837974,-357.61157255,0.00011,2]
[396271009,1764907837984,-300.0,0.00011055,2]
[396271011,1764907837994,-300.0,0.00011055,2]
[396271013,1764907838003,-157.99493661,0.00011055,2]
[396271017,1764907838037,-375.3771532,0.00011055,2]
[396271020,1764907838061,-666.62791019,0.00011055,2]
[396271022,1764907838071,-300.0,0.00011055,2]
[396271024,1764907838081,-1788.00499461,0.00011056,2]
[396271029,1764907838116,-4167.96378097,0.00011056,2]
[396271070,1764907840970,-3e-08,0.00011056,2]
[396271071,1764907840983,-1280.10044694,0.00011056,2]
[396271072,1764907841002,-2665.76654565,0.00011056,2]
[396271073,1764907841025,-18671.44417894,0.00011056,2]
[396271074,1764907841037,-394.56133503,0.00011056,2]
[396271075,1764907841074,-200.94089048,0.00011056,2]
[396271097,1764907843931,-26181.03252873,0.00011056,2]
[396271098,1764907844037,-240.14136904,0.00011056,2]
[396271099,1764907845631,-213.36221024,0.00011056,2]
[396271114,1764907847766,-281.43535408,0.00010945,2]
[396271115,1764907850563,-309.55841584,0.00010945,2]
[396271116,1764907852278,-300.82327806,0.00010945,2]
[396271117,1764907874402,-251.66833942,0.00010945,2]
[396271118,1764907904450,-487.14824491,0.00010945,2]
[396271119,1764907908103,-170.11603679,0.00010945,2]
[396271120,1764907914635,-204.85642121,0.00010945,2]
[396271121,1764907917193,-259.85863093,0.00010945,2]
[396271122,1764907921267,-219.9140731,0.00010945,2]
[396271123,1764907923251,-288.01848471,0.00010945,2]
[396271124,1764907925903,-327.89807133,0.00010945,2]
[396271125,1764907928878,-342.84738842,0.00010945,2]
[396271126,1764907942045,342.84738842,0.00010915,2]
[396271127,1764907990249,151.81121524,0.00010795,2]
[396271128,1764908009478,-278.57856392,0.00010945,2]
[396271129,1764908011710,-440.54194392,0.00010945,2]
[396271130,1764908014494,-713.32503825,0.00010945,2]
[396271131,1764908016099,-123.41171511,0.00010945,2]
[396271132,1764908016121,-250.93228489,0.00010954,2]
[396271133,1764908022239,5000.0,0.00010915,2]
[396271135,1764908044713,1062.40874087,0.00010915,2]
[396271136,1764908111228,350.70986946,0.00010915,2]
[396271137,1764908164023,3092.23278601,9.955e-05,2]
[396271138,1764908164046,6907.76721399,9.955e-05,2]
[396271139,1764908294713,-300.0,0.00010952,2]
[396271140,1764908294743,-300.0,0.00010952,2]
[396271141,1764908309909,-300.0,0.00010953,2]
[396271142,1764908309938,-300.0,0.00010953,2]
[396271143,1764908309972,-300.0,0.00010953,2]
[396271144,1764908310002,-1200.0,0.00010953,2]
[396271145,1764908332022,636.02310741,0.00010952,2]
[396271146,1764908342488,300.0,0.00010952,2]
[396271147,1764908401692,300.0,0.00010952,2]
[396271148,1764908403079,-150.0,0.00010954,2]
[396271149,1764908414684,291.39897073,0.00010681,2]
[396271150,1764908418649,-240.0,0.00010954,2]
[396271151,1764908434044,-1057.0,0.00010955,2]
[396271152,1764908449722,-1391.95653655,0.00010956,2]
[396271153,1764908449852,-10000.01,0.00010956,2]
[396271154,1764908449919,-10000.01,0.00010956,2]
[396271155,1764908449944,-10000.01,0.00010956,2]
[396271156,1764908450178,-10000.01,0.00010956,2]
[396271157,1764908450221,-10000.01,0.00010956,2]
[396271158,1764908450345,-10000.01,0.00010956,2]
[396271159,1764908450480,-10000.01,0.00010956,2]
[396271160,1764908450613,-10000.01,0.00010956,2]
[396271161,1764908452455,-10000.01,0.00010956,2]
[396271162,1764908455581,-10000.01,0.00010956,2]
[396271163,1764908455698,-10000.01,0.00010956,2]
[396271164,1764908455809,-10000.01,0.00010956,2]
[396271165,1764908455914,-10000.01,0.00010956,2]
[396271166,1764908456019,-10000.01,0.00010956,2]
[396271167,1764908456413,-10000.01,0.00010956,2]
[396271168,1764908456525,-10000.01,0.00010956,2]
[396271169,1764908456678,-10000.01,0.00010956,2]
[396271170,1764908463952,-217.22226743,0.00010955,2]
[396271173,1764908565030,-339.66102887,0.0001063,2]
[396271174,1764908664719,4024.84986984,0.0001038,2]
[396271175,1764908673738,5000.0,0.0001038,2]
[396271176,1764908696401,975.16013016,0.0001038,2]
[396271177,1764908696425,4024.83986984,0.0001038,2]
[396271178,1764908719307,5000.0,0.0001038,2]
[396271180,1764908734873,503.79071145,0.0001038,2]
[396271181,1764908742197,471.37941871,0.0001038,2]
[396271182,1764908742223,4528.62058129,0.0001038,2]
[396271183,1764908764536,5000.0,0.0001038,2]
[396271188,1764908787110,471.38941871,0.0001038,2]
[396271189,1764908787137,4528.61058129,0.0001038,2]
[396271191,1764908809827,5000.0,0.0001038,2]
[396271193,1764908832986,471.39941871,0.0001038,2]
[396271194,1764908833008,4528.60058129,0.0001038,2]
[396271195,1764908841591,5000.0,0.0001038,2]
[396271196,1764908857343,471.40941871,0.0001038,2]
[396271197,1764908857367,4528.59058129,0.0001038,2]
[396271199,1764908858070,172.451669,4.977e-05,2]
[396271200,1764908858252,172.451669,6.636e-05,2]
[396271201,1764908858459,172.451669,8.295e-05,2]
[396271202,1764908858671,172.451669,9.954e-05,2]
[396271204,1764908865179,4781.61274271,0.0001038,2]
[396271205,1764908865203,218.38725729,0.0001038,2]
[396271212,1764908885761,5000.0,0.0001038,2]
[396271218,1764908893950,4781.62274271,0.0001038,2]
[396271220,1764908897832,273.26018744,0.00010213,2]
[396271222,1764908898637,-204.64400382,0.0001038,2]
[396271228,1764908909110,3636.30332121,0.00010377,2]
[396271246,1764909015017,-13.73325347,0.0001038,2]
[396271247,1764909015038,-153.94032849,0.0001038,2]
[396271250,1764909026340,2822.04992379,0.00010377,2]
[396271261,1764909032034,-81.05967151,0.0001038,2]
[396271262,1764909032044,-150.0,0.00010479,2]
[396271263,1764909032053,-295.21236088,0.00010855,2]
[396271265,1764909032064,-4.78763912,0.00010855,2]
[396271267,1764909032074,-1200.0,0.00010855,2]
[396271269,1764909032083,-4655.67866861,0.00010856,2]
[396271271,1764909032095,-43408.1923699,0.00010856,2]
[396271272,1764909032105,-309.71717029,0.00010949,2]
[396271274,1764909032114,-152.88749773,0.00010949,2]
[396271276,1764909032123,-1792.5184726,0.00010949,2]
[396271277,1764909032132,-153.20975702,0.00010949,2]
[396271279,1764909032142,-152.10159978,0.00010949,2]
[396271281,1764909032152,-997.74779035,0.00010949,2]
[396271282,1764909032161,-1200.0,0.00010954,2]
[396271283,1764909032170,-500.0,0.00010955,2]
[396271284,1764909032180,-500.0,0.00010955,2]
[396271285,1764909032189,-500.0,0.00010955,2]
[396271286,1764909032198,-500.0,0.00010955,2]
[396271287,1764909032208,-500.0,0.00010955,2]
[396271288,1764909032218,-500.0,0.00010955,2]
[396271289,1764909032227,-500.0,0.00010955,2]
[396271290,1764909032237,-500.0,0.00010955,2]
[396271291,1764909032246,-500.0,0.00010955,2]
[396271292,1764909032255,-500.0,0.00010955,2]
[396271293,1764909032265,-500.0,0.00010955,2]
[396271294,1764909032275,-500.0,0.00010955,2]
[396271295,1764909032284,-500.0,0.00010955,2]
[396271296,1764909032293,-500.0,0.00010955,2]
[396271297,1764909032302,-500.0,0.00010955,2]
[396271298,1764909032312,-500.0,0.00010955,2]
[396271299,1764909032321,-500.0,0.00010955,2]
[396271300,1764909032331,-573.08490616,0.00010955,2]
[396271302,1764909032340,-500.0,0.00010955,2]
[396271304,1764909032350,-500.0,0.00010955,2]
[396271306,1764909032359,-500.0,0.00010955,2]
[396271308,1764909032368,-500.0,0.00010955,2]
[396271310,1764909032377,-500.0,0.00010955,2]
[396271312,1764909032387,-500.0,0.00010955,2]
[396271314,1764909032397,-500.0,0.00010955,2]
[396271316,1764909032407,-500.0,0.00010955,2]
[396271317,1764909032417,-500.0,0.00010955,2]
[396271318,1764909032427,-500.0,0.00010955,2]
[396271319,1764909032519,-500.0,0.00010955,2]
[396271320,1764909032530,-500.0,0.00010955,2]
[396271321,1764909032539,-500.0,0.00010955,2]
[396271323,1764909032549,-500.0,0.00010955,2]
[396271324,1764909032558,-500.0,0.00010955,2]
[396271326,1764909032567,-90.77526902,0.00010955,2]
[396271328,1764909032579,-409.22473098,0.00010955,2]
[396271329,1764909032589,-500.0,0.00010955,2]
[396271330,1764909032598,-213.80169524,0.00010955,2]
[396271331,1764909032609,-286.19830476,0.00010955,2]
[396271332,1764909032618,-500.0,0.00010955,2]
[396271333,1764909032628,-500.0,0.00010955,2]
[396271334,1764909032637,-500.0,0.00010955,2]
[396271335,1764909032645,-500.0,0.00010955,2]
[396271336,1764909032655,-500.0,0.00010955,2]
[396271337,1764909032664,-500.0,0.00010955,2]
[396271338,1764909032674,-500.0,0.00010955,2]
[396271339,1764909032683,-500.0,0.00010955,2]
[396271340,1764909032693,-500.0,0.00010955,2]
[396271341,1764909032702,-500.0,0.00010955,2]
[396271342,1764909032712,-500.0,0.00010955,2]
[396271343,1764909032721,-500.0,0.00010955,2]
[396271344,1764909032730,-500.0,0.00010955,2]
[396271345,1764909032739,-500.0,0.00010955,2]
[396271346,1764909032749,-500.0,0.00010955,2]
[396271347,1764909032758,-500.0,0.00010955,2]
[396271348,1764909032768,-500.0,0.00010955,2]
[396271349,1764909032777,-448.66947586,0.00010955,2]
[396271350,1764909032786,-500.0,0.00010955,2]
[396271351,1764909032796,-500.0,0.00010955,2]
[396271352,1764909032805,-357.55228748,0.00010955,2]
[396271353,1764909032814,-1255.80825313,0.00011057,2]
[396271354,1764909032823,-33911.06716243,0.00011157,2]
[396271384,1764909038241,-3434.98,0.00011157,2]
[396271386,1764909038253,-579.00333235,0.00011157,2]
[396271388,1764909038264,-826.08819371,0.00011157,2]
[396271392,1764909038295,-2500.0,0.00011157,2]
[396271394,1764909038306,-8748.86131151,0.00011157,2]
[396271396,1764909038315,-222.0,0.00011157,2]
[396271398,1764909038324,-222.0,0.00011212,2]
[396271400,1764909038333,-555.0,0.00011212,2]
[396271402,1764909038342,-333.0,0.00011212,2]
[396271404,1764909038352,-222.0,0.00011213,2]
[396271406,1764909038361,-222.0,0.00011363,2]
[396271408,1764909038370,-300.0,0.00011589,2]
[396271410,1764909038379,-300.0,0.00011589,2]
[396271412,1764909038389,-300.0,0.00011589,2]
[396271414,1764909038398,-300.0,0.00011589,2]
[396271416,1764909038407,-300.0,0.00011589,2]
[396271418,1764909038416,-300.0,0.00011589,2]
[396271420,1764909038426,-300.0,0.00011589,2]
[396271422,1764909038435,-300.0,0.00011589,2]
[396271424,1764909038444,-300.0,0.00011589,2]
[396271426,1764909038453,-300.0,0.00011589,2]
[396271428,1764909038462,-300.0,0.00011589,2]
[396271430,1764909038474,-300.0,0.00011589,2]
[396271432,1764909038484,-300.0,0.00011589,2]
[396271434,1764909038494,-300.0,0.00011589,2]
[396271436,1764909038503,-300.0,0.00011589,2]
[396271437,1764909038513,-600.0,0.00011589,2]
[396271439,1764909038523,-500.0,0.00011589,2]
[396271441,1764909038532,-450.759,0.00011669,2]
[396271444,1764909038541,-151.0,0.00011848,2]
[396271446,1764909038553,-420.0,0.0001193,2]
[396271447,1764909038563,-151.0,0.00011985,2]
[396271449,1764909038572,-295.8624647,0.00012122,2]
[396271451,1764909038582,-479.38846679,0.00012471,2]
[396271454,1764909038591,-177.0,0.00012479,2]
[396271455,1764909038601,-720.0,0.00012748,2]
[396271458,1764909038611,-570.39285582,0.000129,2]
[396271459,1764909038621,-151.0,0.00012954,2]
[396271461,1764909038631,-151.0,0.00013091,2]
[396271463,1764909038640,-587.0,0.00013111,2]
[396271465,1764909038649,-570.39285575,0.00013126,2]
[396271467,1764909038659,-242.55339187,0.00013228,2]
[396271469,1764909038668,-500.0,0.00013273,2]
[396271471,1764909038678,-501.85031108,0.00013698,2]
[396271473,1764909038687,-500.0,0.00013698,2]
[396271475,1764909038696,-500.0,0.00013698,2]
[396271477,1764909038706,-555.42626025,0.00013698,2]
[396271479,1764909038716,-500.0,0.00013698,2]
[396271481,1764909038725,-640.6,0.00013698,2]
[396271483,1764909038735,-514.077749,0.00013699,2]
[396271484,1764909038744,-500.0,0.00013699,2]
[396271486,1764909038754,-1000.0,0.00013821,2]
[396271489,1764909038763,-338.78036348,0.00013909,2]
[396271491,1764909038773,-864.0,0.00014023,2]
[396271493,1764909038782,-1000.0,0.00014247,2]
[396271495,1764909038792,-1635.56211596,0.00014368,2]
[396271497,1764909038801,-102.25738277,0.0001441,2]
[396271512,1764909040579,-3e-08,0.0001441,2]
[396271520,1764909046446,-500.0,0.00010955,2]
[396271521,1764909046456,-265.71456297,0.00010955,2]
[396271525,1764909183952,-303.41490542,0.00010747,2]
[396271526,1764909185026,-500.0,0.00010855,2]
[396271527,1764909185047,-121.69755229,0.00010855,2]
[396271528,1764909187067,-79.63733281,0.00010855,2]
[396271529,1764909187088,-132.02562595,0.00010855,2]
[396271530,1764909189930,-156.8170814,0.00010855,2]
[396271531,1764909191986,-152.47933137,0.00010855,2]
[396271532,1764909194221,-58.67796128,0.00010855,2]
[396271533,1764909194246,-173.12591555,0.00010855,2]
[396271534,1764909196375,-156.01391558,0.00010855,2]
[396271535,1764909196398,-43.75314964,0.00010855,2]
[396271536,1764909197853,-256.24685036,0.00010855,2]
[396271537,1764909197880,-159.88740786,0.00010856,2]
[396271538,1764909199402,-9177.53129393,0.00010856,2]
[396271539,1764909199501,-10000.01,0.00010856,2]
[396271540,1764909199633,-10000.01,0.00010856,2]
[396271541,1764909199697,-10000.01,0.00010856,2]
[396271542,1764909199803,-10000.01,0.00010856,2]
[396271543,1764909199919,-10000.01,0.00010856,2]
[396271544,1764909200039,-10000.01,0.00010856,2]
[396271545,1764909200153,-10000.01,0.00010856,2]
[396271546,1764909200266,-10000.01,0.00010856,2]
[396271547,1764909201416,-242.0,0.00010856,2]
[396271548,1764909205498,-582.72324448,0.00010855,2]
[396271549,1764909205532,-500.0,0.00010855,2]
[396271550,1764909205560,-500.0,0.00010855,2]
[396271551,1764909205589,-500.0,0.00010855,2]
[396271552,1764909205618,-500.0,0.00010855,2]
[396271553,1764909205646,-551.9757065,0.00010855,2]
[396271554,1764909205777,-3730.61209804,0.00010856,2]
[396271555,1764909205799,-10000.01,0.00010856,2]
[396271556,1764909205826,-10000.01,0.00010856,2]
[396271557,1764909205875,-10000.01,0.00010856,2]
[396271558,1764909206043,-10000.01,0.00010856,2]
[396271559,1764909208723,-10000.01,0.00010856,2]
[396271560,1764909208867,-10000.01,0.00010856,2]
[396271561,1764909208972,-441.75345409,0.00010856,2]
[396271562,1764909208996,-9116.50309182,0.00010856,2]
[396271563,1764909225829,245.0,0.00011842,5]
[396271564,1764909237290,669.00250047,0.00011061,2]
[396271565,1764909252136,-300.0,0.00011172,2]
[396271566,1764909267144,500.0,0.00010855,2]
[396271567,1764909267173,619.68383428,0.00010855,2]
[396271568,1764909267201,500.0,0.00010855,2]
[396271569,1764909267250,182.60404871,0.00010855,2]
[396271570,1764909267372,-7528.71961654,0.00011173,2]
[396271571,1764909267415,500.0,0.00010855,2]
[396271572,1764909267445,500.0,0.00010855,2]
[396271573,1764909267493,-9000.01,0.00011173,2]
[396271574,1764909267574,-10000.01,0.00011173,2]
[396271575,1764909267677,-10000.01,0.00011173,2]
[396271576,1764909267716,500.0,0.00010855,2]
[396271577,1764909267796,-9500.01,0.00011173,2]
[396271578,1764909267898,-3971.24038346,0.00011173,2]
[396271579,1764909267980,500.0,0.00010855,2]
[396271580,1764909268176,500.0,0.00010855,2]
[396271581,1764909268317,500.0,0.00010855,2]
[396271582,1764909268498,500.0,0.00010855,2]
[396271583,1764909268664,57.52923308,0.00010855,2]
[396271584,1764909268688,442.47076692,0.00010855,2]
[396271585,1764909268889,500.0,0.00010855,2]
[396271586,1764909269064,500.0,0.00010855,2]
[396271587,1764909269298,500.0,0.00010855,2]
[396271588,1764909269413,500.0,0.00010855,2]
[396271589,1764909269688,500.0,0.00010855,2]
[396271590,1764909269759,500.0,0.00010855,2]
[396271591,1764909269905,250.28660124,0.00010855,2]
[396271592,1764909270002,500.0,0.00010855,2]
[396271593,1764909270032,500.0,0.00010855,2]
[396271594,1764909270064,500.0,0.00010855,2]
[396271595,1764909270105,500.0,0.00010855,2]
[396271596,1764909270146,500.0,0.00010855,2]
[396271597,1764909270192,521.90114271,0.00010855,2]
[396271598,1764909270226,500.0,0.00010855,2]
[396271599,1764909270255,500.0,0.00010855,2]
[396271600,1764909270287,500.0,0.00010855,2]
[396271601,1764909270322,500.0,0.00010855,2]
[396271602,1764909270365,500.0,0.00010855,2]
[396271603,1764909270522,500.0,0.00010855,2]
[396271604,1764909270607,285.35148913,0.00010855,2]
[396271605,1764909270633,214.64851087,0.00010855,2]
[396271606,1764909282125,500.0,0.00010855,2]
[396271607,1764909282551,601.24372067,0.00010855,2]
[396271608,1764909282820,-300.0,0.00011173,2]
[396271609,1764909282852,-300.0,0.00011173,2]
[396271610,1764909282886,-300.0,0.00011173,2]
[396271611,1764909282917,-300.0,0.00011173,2]
[396271612,1764909282949,-300.0,0.00011173,2]
[396271613,1764909282983,-300.0,0.00011173,2]
[396271614,1764909283014,-300.0,0.00011173,2]
[396271615,1764909283046,-300.0,0.00011173,2]
[396271616,1764909283076,-300.0,0.00011173,2]
[396271617,1764909283106,-300.0,0.00011173,2]
[396271618,1764909283140,-300.0,0.00011173,2]
[396271619,1764909283176,-300.0,0.00011173,2]
[396271620,1764909283213,-300.0,0.00011173,2]
[396271621,1764909283248,-300.0,0.00011173,2]
[396271622,1764909283280,-300.0,0.00011173,2]
[396271623,1764909283749,500.0,0.00010855,2]
[396271624,1764909283783,500.0,0.00010855,2]
[396271625,1764909283814,0.01,0.00010855,2]
[396271626,1764909283843,499.99,0.00010855,2]
[396271627,1764909283881,500.0,0.00010855,2]
[396271628,1764909283934,500.0,0.00010855,2]
[396271629,1764909284017,500.0,0.00010855,2]
[396271630,1764909284054,500.0,0.00010855,2]
[396271631,1764909284088,500.0,0.00010855,2]
[396271632,1764909284175,500.0,0.00010855,2]
[396271633,1764909284211,500.0,0.00010855,2]
[396271634,1764909284309,500.0,0.00010855,2]
[396271635,1764909284387,500.0,0.00010855,2]
[396271636,1764909284461,500.0,0.00010855,2]
[396271637,1764909284496,500.0,0.00010855,2]
[396271638,1764909284536,500.0,0.00010855,2]
[396271639,1764909284578,500.0,0.00010855,2]
[396271640,1764909284636,500.0,0.00010855,2]
[396271641,1764909284671,500.0,0.00010855,2]
[396271642,1764909284707,609.15051481,0.00010855,2]
[396271643,1764909284756,500.0,0.00010855,2]
[396271644,1764909284798,500.0,0.00010855,2]
[396271645,1764909284841,390.86948519,0.00010855,2]
[396271646,1764909284865,109.13051481,0.00010855,2]
[396271647,1764909284895,500.0,0.00010855,2]
[396271648,1764909284933,500.0,0.00010855,2]
[396271649,1764909284967,500.0,0.00010855,2]
[396271650,1764909285009,500.0,0.00010855,2]
[396271651,1764909307701,500.0,0.00010855,2]
[396271652,1764909307732,500.0,0.00010855,2]
[396271653,1764909307776,500.0,0.00010855,2]
[396271654,1764909307814,500.0,0.00010855,2]
[396271655,1764909307845,500.0,0.00010855,2]
[396271656,1764909307879,500.0,0.00010855,2]
[396271657,1764909307928,500.0,0.00010855,2]
[396271658,1764909307969,500.0,0.00010855,2]
[396271659,1764909307999,500.0,0.00010855,2]
[396271660,1764909308035,500.0,0.00010855,2]
[396271661,1764909308070,500.0,0.00010855,2]
[396271662,1764909308101,500.0,0.00010855,2]
[396271663,1764909308135,500.0,0.00010855,2]
[396271664,1764909308176,500.0,0.00010855,2]
[396271665,1764909308215,559.51129275,0.00010855,2]
[396271666,1764909308257,500.0,0.00010855,2]
[396271667,1764909308289,500.0,0.00010855,2]